Cogmind - Beta 13 @@@ ROGUE MODE // 2024.04.17 @ 15:07:13 Player: Gabe+Kate4EVR Result: Destroyed by Y-54 Guardian with Flak Gun Performance ------------- Evolutions (3) 1500 Regions Visited (4) 800 Robots Destroyed (103) 515 Value Destroyed (3160) 3160 Prototype IDs (10) 200 Alien Tech Used (0) 0 Bonus (37) 37 TOTAL SCORE: 6212 Bonus ------- High Alert Combat Kills 37 Cogmind --------- Core Integrity 0/700 Matter 160/300 Energy 290/290 System Corruption 3% Temperature Cool (12) Movement Rolling (100) Ox1 Location -7/Factory Parts ------- > --- POWER (1) -------- Improved Deuterium Engine > --- PROPULSION (4) --- Wheel Wheel Armored Wheel Armored Wheel > --- UTILITY (6) ------ Large Storage Unit Microactuators Improved Power Shielding Insulated Plating Insulated Plating > --- WEAPON (2) ------- High-powered Shotgun Heavy Mace > --- INVENTORY (15) --- Micro Nuclear Core Micro Nuclear Core Aluminum Leg Coolant Injector Trap Scanner Improved Power Shielding Improved Light Armor Plating Improved Light Armor Plating Precision Beam Rifle Gauss Rifle Assault Cannon Heavy Rocket Launcher Heavy Rocket Launcher Remote Datajack Remote Datajack Peak State ------------ > --- POWER ------------ Reinforced Ion Engine > --- PROPULSION ------- Gravmag System Gravmag System Gravmag System Gravmag System > --- UTILITY ---------- Large Storage Unit Improved Targeting Computer Improved Power Shielding Improved Medium Armor Plating > --- WEAPON ----------- Gatling Laser Gatling Laser > --- INVENTORY -------- Light Ion Engine Improved Aluminum Leg Improved Aluminum Leg Flight Unit Improved Power Shielding Improved Power Shielding Spread Laser Spread Laser Gatling Laser Gatling Laser Shotgun Shotgun Improved Light Cannon Improved Light Cannon Mini Grenade Launcher [Rating: 39] Favorites ----------- Power Light Ion Engine Engine Light Ion Engine Power Core Micro Nuclear Core Propulsion Aluminum Leg Treads Light Treads Leg Aluminum Leg Wheel Wheel Hover Unit Gravmag System Flight Unit Flight Unit Utility Large Storage Unit Device Improved Heat Sink Storage Large Storage Unit Processor Improved Targeting Computer Hackware Hacking Suite Protection Improved Light Armor Plating Weapon Shotgun Energy Gun Small Laser Energy Cannon Advanced Beam Cannon Ballistic Gun Shotgun Ballistic Cannon Assault Cannon Launcher Heavy Rocket Launcher Impact Weapon Heavy Mace Build | -11 -10 -9 -8 -7 ------- Run | Yrd Mat Mat Mat Fac Slots Evolved 6 | . . 2 2 2 Power . | . . . . . Propulsion 2 | . . 2 . . Utility 4 | . . . 2 2 Weapon . | . . . . . Parts Attached 162 | 5 20 45 46 46 Power 19 | . 6 4 6 3 Engine 14 | . 5 4 3 2 Core 5 | . 1 . 3 1 Reactor . | . . . . . Propulsion 63 | 2 8 21 16 16 Treads 18 | . 2 11 4 1 Leg 27 | 2 4 7 7 7 Wheel 11 | . . 3 1 7 Hover 5 | . . . 4 1 Flight 2 | . 2 . . . Utility 33 | 1 1 5 9 17 Device 8 | . 1 . 3 4 Storage 3 | 1 . 2 . . Processor 6 | . . 1 2 3 Hackware 2 | . . . 2 . Protection 14 | . . 2 2 10 Artifact . | . . . . . Weapon 47 | 2 5 15 15 10 Energy Gun 17 | 2 3 4 4 4 Energy Cannon 2 | . . 2 . . Ballistic Gun 21 | . 2 7 8 4 Ballistic Cannon 4 | . . 2 2 . Launcher 2 | . . . 1 1 Special Weapon . | . . . . . Impact Weapon 1 | . . . . 1 Slashing Weapon . | . . . . . Piercing Weapon . | . . . . . Special Melee Weapon . | . . . . . Unidentified Prototypes 2 | . . 1 1 . Corrupted Parts 2 | . 1 . 1 . System Corruption 3 | . 1 . 2 . Parts Lost 38 | . 3 2 12 21 Power 3 | . . 1 1 1 Propulsion 17 | . 1 . 7 9 Utility 9 | . . . 2 7 Weapon 9 | . 2 1 2 4 Highest Loss Streak 8 | . 1 1 6 8 To Critical Strikes 1 | . . . . 1 Average Slot Usage (%) 90 | . 84 97 94 80 Engine 6 | . 8 10 3 2 Core 2 | . 3 . 5 2 Treads 8 | . 7 10 8 4 Leg 19 | . 12 30 19 6 Wheel 1 | . . . . 5 Device 4 | . 4 1 10 5 Storage 9 | . 14 11 9 7 Processor 5 | . . 5 7 7 Hackware 2 | . . . 5 6 Protection 5 | . . 3 1 14 Energy Gun 7 | . 15 8 5 3 Ballistic Gun 9 | . 10 12 8 6 Ballistic Cannon 1 | . . . 2 1 Naked Turns . | . . . . . Heaviest Build 48 | 8 13 36 45 48 Greatest Support 82 | 20 40 80 82 44 Greatest Overweight (x) 12 | . 3 2 3 12 Average Overweight (x) . | . . . . 1 Largest Inventory Capacity 15 | 8 8 15 15 15 Average Capacity 12 | 6 8 12 15 15 Most Carried 15 | 3 8 15 15 15 Average Carried 12 | 1 6 11 14 14 Final Capacity 15 | 8 8 15 15 15 Final Carried 15 | 3 8 15 15 15 Class Distribution -------------------- 49% | Mutant 39% | Scavenger-Mutant 11% | Hacker-Mutant Dominant Class ---------------- Mutant | -10/Materials Mutant | -9/Materials Scavenger-Mutant | -8/Materials Scavenger-Mutant | -7/Factory Resources | -11 -10 -9 -8 -7 ----------- Run | Yrd Mat Mat Mat Fac Matter Collected 2700 | 209 223 909 678 681 Remotely . | . . . . . Salvage Created 3655 | . 421 1279 1091 864 Parts 212 | . 24 78 63 47 Haulers Intercepted 6 | . 1 3 1 1 Recyclers Shooed 2 | . 1 . . 1 Parts Field Recycled . | . . . . . Retrieved Matter . | . . . . . Parts Self-Destructed . | . . . . . Prevented . | . . . . . Kills | -11 -10 -9 -8 -7 ------- Run | Yrd Mat Mat Mat Fac Combat Hostiles Destroyed 70 | . 10 23 19 18 Guns 57 | . 10 21 14 12 Cannons 6 | . . 2 3 1 AOE 6 | . . . 1 5 Classes Destroyed 15 | . 4 6 4 1 Worker 10 | . . 2 2 6 Builder 6 | . 1 1 1 3 Tunneler 2 | . . . 1 1 Hauler 6 | . 1 3 1 1 Recycler 2 | . . 1 1 . Mechanic 3 | . . . 1 2 Watcher 4 | . . 2 2 . Swarmer 9 | . 3 3 3 . Grunt 34 | . 7 10 8 9 Brawler 3 | . . 3 . . Duelist 3 | . . 1 1 1 Sentry 12 | . . 6 5 1 Specialist 1 | . . . 1 . Hunter 5 | . . . 1 4 Programmer 3 | . . . . 3 Best Kill Streak 7 | . 4 6 7 7 Combat Bots Only 5 | . 4 4 5 4 Max Kills in Single Turn 7 | . 2 1 2 7 Gunslinging 1 | . 1 . . . Exploded 4 | . . . 1 4 Melee . | . . . . . Uniques/NPCs Destroyed . | . . . . . Combat | -11 -10 -9 -8 -7 -------- Run | Yrd Mat Mat Mat Fac Hostile Shots Fired 636 | . 84 124 175 253 Missed 179 | . 19 37 48 75 Damage Taken 7008 | . 636 1211 2337 2824 Core 1533 | . 135 151 546 701 Absorbed by Shields 12 | . . . . 12 Redirected to Shielding 50 | . . . 41 9 Regen/Repaired (Parts) 198 | . . 159 . 39 Core Remaining (%) 52 | 100 46 62 . . Volleys Fired 314 | . 63 94 74 83 Largest 2 | . 2 2 2 2 Hottest 160 | . 80 136 160 105 Shots Fired 560 | . 105 185 133 137 Gun 505 | . 105 177 109 114 Cannon 46 | . . 8 21 17 Launcher 9 | . . . 3 6 Special . | . . . . . Kinetic 323 | . 54 120 79 70 Thermal 196 | . 42 65 31 58 Explosive 9 | . . . 3 6 Electromagnetic 32 | . 9 . 20 3 Robot Hit Streak 15 | . 14 15 11 11 Robot Miss Streak 5 | . 3 4 5 4 Penetration Max 1 | . . . 1 . Secondary Targets 4 | . 2 2 . . Max Gunslinging Chain 1 | . 1 1 . . Shots Hit Robots 389 | . 67 123 93 106 Core Hits 198 | . 23 63 49 63 Critical Kills 1 | . . . 1 . Critical Parts Destroyed 2 | . 1 . 1 . Critical Strikes 6 | . 1 . 4 1 Burn 1 | . . . . 1 Destroy 3 | . 1 . 2 . Blast 2 | . . . 2 . Melee Attacks . | . . . . . Impact . | . . . . . Slashing . | . . . . . Piercing . | . . . . . Sneak Attacks . | . . . . . Combat Hostiles . | . . . . . Follow-up Attacks . | . . . . . Damage Inflicted 7581 | . 659 1813 2098 3011 Guns 5792 | . 659 1731 1628 1774 Cannons 621 | . . 82 319 220 Explosions 1161 | . . . 144 1017 Melee . | . . . . . Ramming 7 | . . . 7 . Kinetic 3552 | . 312 1249 1089 902 Thermal 2560 | . 275 564 632 1089 Explosive 1161 | . . . 144 1017 Electromagnetic 301 | . 72 . 226 3 Impact . | . . . . . Slashing . | . . . . . Piercing . | . . . . . Highest Corruption 3 | . 3 . 2 3 Average Corruption 2 | . 2 . 2 1 Corruption Purged . | . . . . . Corruption Blocked . | . . . . . Effects 33 | . 12 . 6 15 Message Errors 9 | . 2 . 2 5 Matter Fused 9 | . 4 . 2 3 Heat Flow Errors 4 | . 2 . 1 1 Energy Discharges 4 | . 1 . 1 2 Parts Rejected 1 | . . . . 1 Data Loss (minor) 3 | . 1 . . 2 Data Loss (major) 1 | . 1 . . . Misfires 1 | . 1 . . . Weapon Failures 1 | . . . . 1 Overload Shots . | . . . . . Overflow Damage 97 | . . . . 97 Projectiles . | . . . . . Explosions 97 | . . . . 97 Melee . | . . . . . Knockbacks 6 | . . . 3 3 Impact . | . . . . . Kinetic 5 | . . . 3 2 Secondary 1 | . . . . 1 Self-Inflicted Damage 213 | . . . 59 154 Shots 4 | . . . 1 3 Rammed 3 | . . . 3 . Targets Rammed 5 | . 1 . 4 . Kicked 2 | . 1 . 1 . Crushed . | . . . . . Highest Temperature 674 | . 216 324 674 666 Average Temperature 115 | . 84 45 224 142 Received Heat Transfer 2190 | . 234 408 882 666 Effects 47 | . . 1 30 16 Shutdowns 8 | . . . 4 4 Energy Bleed 6 | . . . 3 3 Interference 7 | . . 1 3 3 Matter Decay 3 | . . . 1 2 Short Circuit 2 | . . . 1 1 Damage (major) 16 | . . . 15 1 Damage (core) 5 | . . . 3 2 Siege Activations . | . . . . . Robots Corrupted . | . . . . . Combat Hostiles . | . . . . . Parts Fried 1 | . . . 1 . Impact Corruptions . | . . . . . Robots Melted 1 | . . . 1 . Combat Hostiles 1 | . . . 1 . Parts Melted 5 | . . . 1 4 Heat Transferred 5557 | . 625 1108 1423 2401 Parts Sabotaged . | . . . . . Parts Stolen . | . . . . . Parts Stripped . | . . . . . Power Chain Reactions . | . . . . . Alert | -11 -10 -9 -8 -7 ------- Run | Yrd Mat Mat Mat Fac Peak Influence 475 | . 209 335 475 294 Initial 181 | . . . 113 181 Average 194 | . 81 203 290 178 Maximum Alert Level 2 | . 1 1 2 1 Low Security (%) 50 | 100 97 38 32 56 Level 1 44 | . 2 61 40 43 Level 2 4 | . . . 26 . Level 3 . | . . . . . Level 4 . | . . . . . Level 5 . | . . . . . High Security . | . . . . . Max Security . | . . . . . Squads Dispatched 18 | . 1 4 7 6 Investigation 8 | . . 4 1 3 Extermination 2 | . . . . 2 Reinforcement 7 | . 1 . 5 1 Assault . | . . . . . Garrison 1 | . . . 1 . Intercept . | . . . . . Searches Triggered . | . . . . . Construction Impeded 1 | . . . . 1 Haulers Reinforced . | . . . . . Active Scanning Responses . | . . . . . Cargo Convoy Interrupts . | . . . . . Stealth | -11 -10 -9 -8 -7 --------- Run | Yrd Mat Mat Mat Fac Distress Signals 10 | . 1 3 6 . Communications Jammed . | . . . . . Distress Signals . | . . . . . Times Spotted 111 | . 18 35 37 21 Peak Tracking Total 8 | . 6 4 8 4 Tactical Retreats 3 | . . . . 3 Traps | -11 -10 -9 -8 -7 ------- Run | Yrd Mat Mat Mat Fac Traps Triggered 9 | . 3 2 3 1 Indirectly . | . . . . . Trap Hack Attempts . | . . . . . Triggered . | . . . . . Disarmed . | . . . . . Reprogrammed . | . . . . . Reused . | . . . . . Traps Extracted . | . . . . . Installed . | . . . . . Triggered . | . . . . . Machines | -11 -10 -9 -8 -7 ---------- Run | Yrd Mat Mat Mat Fac Machines Disabled 13 | . . 4 4 5 Max in Single Turn 4 | . . 1 1 4 Machines Repaired . | . . . . . Machines Dismantled . | . . . . . Machines Sabotaged . | . . . . . Overloaded Fab Kills . | . . . . . Hacking | -11 -10 -9 -8 -7 --------- Run | Yrd Mat Mat Mat Fac Machines Accessed 15 | . 2 8 1 4 Terminals 8 | . 2 5 . 1 Fabricators . | . . . . . Repair Stations 5 | . . 2 . 3 Recycling Units . | . . . . . Scanalyzers 2 | . . 1 1 . Garrison Access . | . . . . . Total Hacks 56 | . 5 37 4 10 Successful 37 | . 4 26 4 3 Failed 19 | . 1 11 . 7 Catastrophic 8 | . 1 4 . 3 Database Lockouts . | . . . . . Manual 10 | . 3 7 . . Terminals 18 | . 5 12 . 1 Fabricators . | . . . . . Repair Stations 20 | . . 11 . 9 Recycling Units . | . . . . . Scanalyzers 18 | . . 14 4 . Garrison Access . | . . . . . Terminal Hacks 8 | . 4 3 . 1 Prototype ID Bank 5 | . 2 3 . . Open DSF 1 | . . . . 1 Alert Level 1 | . 1 . . . Unreport Threat 1 | . 1 . . . Fabricator Hacks . | . . . . . Repair Station Hacks 11 | . . 9 . 2 Scan Component 6 | . . 5 . 1 Repair 5 | . . 4 . 1 Recycling Unit Hacks . | . . . . . Scanalyzer 18 | . . 14 4 . Insert Component 9 | . . 7 2 . Analyze 9 | . . 7 2 . Garrison Access Hacks . | . . . . . Unauthorized Hacks . | . . . . . Terminals . | . . . . . Fabricators . | . . . . . Repair Stations . | . . . . . Recycling Units . | . . . . . Scanalyzers . | . . . . . Garrison Access . | . . . . . Data Cores Recovered . | . . . . . Used . | . . . . . Hacking Detections 12 | . 1 7 1 3 Full Trace Events 7 | . . 3 1 3 Feedback Events . | . . . . . Feedback Blocked . | . . . . . Robot Schematics Acquired . | . . . . . Robots Built . | . . . . . Authchips . | . . . . . Time . | . . . . . Total Robot Build Rating . | . . . . . Part Schematics Acquired 9 | . . 7 2 . Parts Built . | . . . . . Authchips . | . . . . . Time . | . . . . . Total Part Build Rating . | . . . . . Parts Repaired 5 | . . 4 . 1 Time 133 | . . 114 . 19 Parts Recycled . | . . . . . Recycled Matter . | . . . . . Retrieved Matter . | . . . . . Retrieved Components . | . . . . . Parts Scanalyzed 9 | . . 7 2 . Part Schematics Acquired 9 | . . 7 2 . Parts Damaged . | . . . . . Bothacking | -11 -10 -9 -8 -7 ------------ Run | Yrd Mat Mat Mat Fac Used RIF Installer . | . . . . . Robots Hacked . | . . . . . Non-combat . | . . . . . Combat . | . . . . . Robot Hacks Applied . | . . . . . Relay Couplers Released . | . . . . . Fabnet Peak Effective % . | . . . . . Robots Rewired . | . . . . . Allies Hacked . | . . . . . Hacks Repelled . | . . . . . Allies | -11 -10 -9 -8 -7 -------- Run | Yrd Mat Mat Mat Fac Total Allies . | . . . . . Largest Group . | . . . . . Highest-Rated Group . | . . . . . Highest-Rated Ally . | . . . . . Total Orders . | . . . . . Ally Attacks . | . . . . . Total Damage . | . . . . . Kills . | . . . . . Allies Corrupted . | . . . . . Allies Melted . | . . . . . Intel | -11 -10 -9 -8 -7 ------- Run | Yrd Mat Mat Mat Fac Robot Analysis Total . | . . . . . Derelict Logs Recovered . | . . . . . Drone Launches . | . . . . . Drone Recoveries . | . . . . . Exploration | -11 -10 -9 -8 -7 ------------- Run | Yrd Mat Mat Mat Fac Turns Passed 5666 | 97 710 2326 1045 1488 Spaces Moved 2681 | 76 351 1047 520 687 Core 17 | 6 3 . . 8 Treads 745 | . 123 268 144 210 Legs 1447 | 70 146 771 300 160 Wheels 319 | . . 8 5 306 Hover 74 | . . . 71 3 Flight 79 | . 79 . . . Fastest Speed 48 | 50 117 86 48 85 Average Speed 142 | 114 139 130 140 166 Slowest Speed 650 | 120 200 260 330 650 Overloaded Moves . | . . . . . Propulsion Burnouts . | . . . . . Robots Hopped . | . . . . . Cave-ins Triggered . | . . . . . Exploration Rate (%) 35 | 5 57 70 34 12 Regions Visited 4 Branch Regions . Pre-discovered Areas . | . . . . . Known Exits Taken . | . . . . . Unknown Exits Taken 4 | 1 1 1 1 . Scrap Searched . | . . . . . Spaces Dug . | . . . . . Terrain Destroyed 74 | . . . 42 32 Melee . | . . . . . Projectile 3 | . . . 3 . AOE 71 | . . . 39 32 Terrain Rammed . | . . . . . Walls Destroyed . | . . . . . Machines Disabled . | . . . . . Actions | -11 -10 -9 -8 -7 --------- Run | Yrd Mat Mat Mat Fac Total 3983 | 83 476 1836 709 879 Wait 646 | . 26 579 6 35 Move 2677 | 75 350 1046 519 687 Hop . | . . . . . Pick Up 52 | 3 3 21 18 7 Fast Attach 109 | 5 13 26 29 36 Attach 13 | . 1 3 3 6 Detach 18 | . 4 4 4 6 Swap 40 | . 6 16 14 4 Drop 109 | . 9 47 38 15 Fire 314 | . 63 94 74 83 Melee . | . . . . . Ram . | . . . . . Kick 2 | . 1 . 1 . Crush 3 | . . . 3 . Escape Stasis . | . . . . . Rewire . | . . . . . Trap . | . . . . . Miscellaneous . | . . . . . Route ------- -11/Scrapyard -10/Materials (discovered 2 exits: *Mat / [*Min]) -9/Materials (discovered 2 exits: *Mat / [*Min]) -8/Materials -7/Factory (discovered 1 exit: [*Fac]) History --------- Turn | Location | Event 37 | -11/Scrapyard | Discovered new exit (range 15) 98 | -11/Scrapyard | Entered Materials 228 | -10/Materials | Discovered new exit (range 16) 466 | -10/Materials | Discovered new exit (range 5) 529 | -10/Materials | Core integrity fell below 50% 808 | -10/Materials | Entered another Materials area 808 | -9/Materials | Evolved 2 slots: Propulsion x2 932 | -9/Materials | Build established: Mutant 1066 | -9/Materials | Repaired Broken Lgt. Ion Engine 1277 | -9/Materials | Build established: Scavenger-Mutant 1520 | -9/Materials | Discovered new exit (range 8) 1848 | -9/Materials | Discovered new exit (range 5) 2017 | -9/Materials | Build established: Mutant 2334 | -9/Materials | Repaired Aluminum Leg 2362 | -9/Materials | Repaired Aluminum Leg 2389 | -9/Materials | Repaired Aluminum Leg 3134 | -9/Materials | Entered another Materials area 3134 | -8/Materials | Evolved 2 slots: Utility x2 3316 | -8/Materials | Lost 6 parts (1p3n2u) 3432 | -8/Materials | Core integrity fell below 50% 3617 | -8/Materials | Build established: Scavenger-Mutant 3842 | -8/Materials | Lost 3 parts (2n1w) 3866 | -8/Materials | Garrison activated, responded to threat 4135 | -8/Materials | Core integrity fell below 20% 4146 | -8/Materials | Discovered new exit (range 13) 4179 | -8/Materials | Entered Factory 4179 | -7/Factory | Evolved 2 slots: Utility x2 4356 | -7/Factory | Build established: Hacker-Mutant 4415 | -7/Factory | Lost 3 parts (2n1w) 4816 | -7/Factory | Repaired Hpw. Shotgun 5067 | -7/Factory | Lost 8 parts (2n4u2w) 5300 | -7/Factory | Core integrity fell below 50% 5311 | -7/Factory | Build established: Scavenger-Mutant 5339 | -7/Factory | Core integrity fell below 20% 5358 | -7/Factory | Lost 3 parts (2n1u) 5663 | -7/Factory | Discovered new exit (range 8) 5667 | -7/Factory | Destroyed by Y-54 Guardian with Flak Gun Last Messages --------------- 05518_ Acquired Wheel. 05523_ U-05 Engineer destroyed. 05528_ System corrupted: Heat flow error (+140). 05531_ Acquired 12 matter. 05533_ Acquired Wheel. 05540_ Acquired 18 matter. 05581_ >> Machine Analyzer network decryption results: 05581_ Scanalyzer x1 05582_ OODLFHRXXOCWTQ%GMYWN9SXPM C2M#CWC 05614_ System corrupted: Gatling Laser failed to cycle. 05624_ %CY|N 0/6BNJ1QYO|TAYWLXFV#YB>VS9AYPFJTFS 05628_ Dropped Gatling Laser. 05629_ Acquired Hvy. Mace. 05642_ Discarded Imp. Targeting Computer. 05642_ Acquired Microactuators. 05643_ Discarded Machine Analyzer. 05645_ Acquired Microactuators. 05663_ EXIT=FOUND 05664_ K-01 Serf destroyed. 05667_ System corrupted: Microactuators rejected. Map ----- +----------------------------------------------------+ | ?????????????????????????????????????????????????? | | ?????????????????????????????????????????????????? | | ?????????????????????????????????????????????????? | | ?????????????????????????????????????????????????? | | ?????????????????????????????????????????????????? | | ?????????????????????????????????????????????????? | | ?????????????????????????????????????????????????? | | ?????????????????????????????????????????????????? | | ??????????????????????????? ????????????????????? | | ??????????????????????????? ????????????????????? | | #############?????????????? ????????????????????? | | #????????????##+###??????????????????? | | ############# #??????????????????? | | """" # # u #??????????????????? | | """" ! # # #??????????????????? | | """" # #t +??????????????????? | | """" #! + u #??????????????????? | | "" # ] # #??????????????????? | | """" """ # # #??????????????????? | | """" S" # ! # #??????????????????? | | """" """ # # #??????????????????? | | """" """ # # +??????????????????? | | # + #??????????????????? | | ######+###### # % #??????????????????? | | ???# + # #??????????????????? | | ???# ########+#######@ #??????????????????? | | ???# #??????# #????# r #?????????????????? | | #### #??????# #????# #?????????????????? | | ########+##???# ???????????????? | | # #???# Y ####??????????????? | | # #???# r #?????????????????? | | # #???# #?????????????????? | | # """ #???# #?????????????????? | | #! """ #???### ###?????????????????? | | # """ #?????? #???????????????????? | | # #?????? #???????????????????? | | # #?????? #???????????????????? | | ###+###########?? #???????????????????? | | ???????????????????? | | ^ ???????????????????? | | = ! ?????????????????????? | | ![ ???????????????????????? | | [ ???????????????????????? | | ################ ????????????????????????? | | [ ###????????????? ???????????????????????? | | # #?????????????? ????????????????????????? | | ###??????????????? ????????????????????????? | | # #???????????????? ?????????????????????????? | | ###????????????????? ?????????????????????????? | | ##?????????????????????????????????????????????? | +----------------------------------------------------+ Best States ------------- Heat Dissipation 59 Energy Generation 16 Energy Capacity 290 Matter Stores 300 Matter Capacity 300 Sight Range 16 Robot Scan Range 15 Terrain Scan Density 10 Armor Coverage 300 Resistance: EM 15 Power Shielding 66 Melee Speed Boost 40 Evasion (%) 55 Targeting Accuracy 6 Recoil Reduction 4 Matter Filtering 30 Offensive Hacking 20 Item Schematics ----------------- Spread Laser | -9/Materials | Scanalyzed Imp. Light Cannon | -9/Materials | Scanalyzed Mni. Grenade Launcher | -9/Materials | Scanalyzed Lgt. Ion Engine | -9/Materials | Scanalyzed Aluminum Leg | -9/Materials | Scanalyzed Flight Unit | -9/Materials | Scanalyzed Signal Interpreter | -9/Materials | Scanalyzed Gatling Laser | -8/Materials | Scanalyzed Imp. Datajack | -8/Materials | Scanalyzed Robot Schematics ------------------ None Fabricated ------------ Nothing Alien Tech Used ----------------- None Achievements -------------- None Challenges ------------ None Game ------ Seed CannonHypervelocityRefractor Manual? 0 Play Time 00:38:56 Cumulative 99.4 hours Start 2024.04.17 @ 13:55:00 End 2024.04.17 @ 15:07:13 Sessions 1 Manual Loads 0 Difficulty Rogue Special Mode None Game No. 200 Rogue 200 Adventurer 0 Explorer 0 Win Type - Total 0 Types 0/0/0/0/0/0/0/0/0 Lore% 31 Gallery% 50 Achievement% 35 Wizard Run 0 Options --------- Layout 0 ASCII 0 Keyboard 1 Movement Numpad Keybinds 0 Fullscreen 2 Font 18/X11 Map View 76x50 Zoom Use 0% Tactical HUD 1 Map Filters NONE Filters NONE Steam 1 RUN: 77657beb-9929-4e6d-b382-7be5c9c025ce